bitfinex-derivatives/quotes_SOLF0:USTF0_20250816
["timestamp","ask_amount","ask_price","bid_price","bid_amount"]
[1755302801048,3.05,186.01,185.88,3.13]
[1755302801252,3.05,185.99,185.89,5.3755]
[1755302801452,3.05,185.99,185.9,3.13]
[1755302802045,3.05,185.95,185.9,3.13]
[1755302802652,3.05,185.95,185.78,3.13]
[1755302802956,3.05,185.95,185.79,3.13]
[1755302803158,3.05,185.95,185.87,5.3761]
[1755302803350,3.05,185.95,185.86,3.13]
[1755302803656,3.05,185.92,185.86,3.13]
[1755302805157,3.05,185.92,185.8,3.13]
[1755302805550,4.15443199,185.91,185.8,3.13]
[1755302805750,3.05,185.94,185.8,3.13]
[1755302805955,16.16,185.91,185.8,3.13]
[1755302806155,3.05,185.89,185.8,3.13]
[1755302806353,4.15092423,185.88,185.8,3.13]
[1755302806555,3.05,185.87,185.8,3.13]
[1755302807057,3.05,185.84,185.8,3.13]
[1755302807259,3.05,185.83,185.8,3.13]
[1755302807450,3.05,185.82,185.8,3.13]
[1755302807650,0.03595425,185.85,185.74,3.13]
[1755302807651,3.05,185.84,185.74,3.13]
[1755302808252,20.67571362,185.94,185.73,360.88]
[1755302808455,3.13,185.87,185.85,2.95]
[1755302809156,3.13,185.86,185.73,360.88]
[1755302809359,3.13,185.86,185.74,2.95]
[1755302809557,3.13,185.86,185.82,5.3777]
[1755302809757,0.03426265,185.82,185.74,2.95]
[1755302810157,3.13,185.94,185.82,2.95]
[1755302810357,3.13,185.92,185.85,5.51360666]
[1755302810658,3.13,185.92,185.86,2.95]
[1755302811060,0.03476598,185.9,185.86,2.95]
[1755302811759,0.03476598,185.9,185.89,8.3258]
[1755302812358,0.03476598,185.9,185.88,5.376]
[1755302812559,3.13,185.89,185.86,2.95]
[1755302812759,3.13,185.88,185.86,2.95]
[1755302812959,3.13,185.87,185.86,2.95]
[1755302813163,3.13,185.89,185.81,5.51360666]
[1755302813365,3.13,185.89,185.82,2.95]
[1755302813564,4.51571362,185.97,185.86,5.3765]
[1755302813763,0.0345014,185.87,185.86,8.3265]
[1755302814065,3.13,185.88,185.86,8.3265]
[1755302814460,0.0344751,185.88,185.87,2.95]
[1755302814764,0.0344751,185.88,185.87,8.3263]
[1755302818765,0.0344751,185.88,185.87,8.3263]
[1755302818963,7.51e-05,185.88,185.87,8.3263]
[1755302819469,136.82,186.0,185.87,3.49]
[1755302819659,3.13,185.96,185.91,5.51360666]
[1755302819864,3.13,185.98,185.92,2.95]
[1755302820369,3.13,185.98,185.91,5.51360666]
[1755302820561,3.13,185.98,185.9,5.3754]
[1755302820760,4.14091259,185.97,185.93,0.04076061]
[1755302820958,3.13,185.95,185.93,0.04076061]
[1755302821662,3.67,185.95,185.93,0.04076061]
[1755302821869,7.27289184,185.94,185.93,0.04076061]
[1755302822167,3.13,185.94,185.93,0.04076061]
[1755302823269,7.27514879,185.94,185.93,0.04076061]
[1755302824171,3.13,185.94,185.93,2.99076061]
[1755302824367,3.13,185.94,185.93,0.04076061]
[1755302824873,3.13,185.94,185.93,2.99076061]
[1755302825073,3.13,186.0,185.93,2.99076061]
[1755302825367,7.25795585,185.99,185.94,2.95]
[1755302825668,3.13,185.98,185.94,2.95]
[1755302826069,360.88,186.04,185.96,5.3735]
[1755302826268,4.12961545,186.03,185.95,5.51360666]
[1755302826469,3.13,186.0,185.97,2.95]
[1755302826674,3.13,186.0,185.98,2.95]
[1755302827370,3.13,186.03,185.97,0.03996634]
[1755302827570,3.13,186.01,185.97,0.03996634]
[1755302827875,3.13,185.99,185.97,0.03996634]
[1755302828172,365.39571362,186.04,185.97,2.98996634]
[1755302828368,4.13644895,186.03,185.97,0.03996634]
[1755302828575,3.13,186.01,185.97,0.03996634]
[1755302828779,3.13,185.99,185.97,0.03996634]
[1755302828980,7.26644895,185.98,185.97,0.03996634]
[1755302831483,3.13,185.97,185.87,2.95]
[1755302831682,3.13,185.95,185.87,2.95]
[1755302831877,4.13644895,185.94,185.87,2.95]
[1755302832078,7.26644895,185.93,185.87,2.95]
[1755302832277,7.26644895,185.92,185.86,2.95]
[1755302832475,4.48781012,185.94,185.86,2.95]
[1755302832476,7.26644895,185.91,185.86,2.95]
[1755302832676,4.13644895,185.9,185.87,5.3761]
[1755302832976,4.15405018,185.89,185.86,2.95]
[1755302833178,3.13,185.9,185.88,2.95]
[1755302833377,4.15908001,185.89,185.88,2.95]
[1755302835082,4.15908001,185.89,185.88,8.326]
[1755302835282,0.03883389,185.91,185.86,2.95]
[1755302835484,4.16300023,185.9,185.86,2.95]
[1755302835782,0.03883389,185.91,185.86,2.95]
[1755302835984,4.16293204,185.9,185.86,2.95]
[1755302836276,0.03883389,185.91,185.9,2.95]
[1755302836884,0.03883389,185.91,185.9,8.3254]
[1755302837077,7.61781012,186.0,185.9,3.49]
[1755302837384,7.61781012,186.0,185.82,10.7551]
[1755302837385,4.16263239,185.99,185.94,2.95]
[1755302837581,4.16263239,185.98,185.94,2.95]
[1755302837787,4.48781012,186.02,185.99,5.3728]
[1755302837979,3.13,186.0,185.94,2.95]
[1755302838180,3.13,185.97,185.89,5.51360666]
[1755302838377,7.23203211,185.96,185.95,0.03887845]
[1755302838781,7.23203211,185.96,185.94,3.0]
[1755302838986,4.16203211,185.95,185.94,3.03599276]
[1755302839685,4.16203211,185.95,185.94,8.41029276]
[1755302840085,3.07,185.98,185.95,3.0]
[1755302840386,7.2330023,185.97,185.95,8.3739]
[1755302840581,4.1630023,185.96,185.95,3.0]
[1755302840788,3.07,185.95,185.94,0.03599276]
[1755302840982,7.2330023,185.95,185.94,0.03599276]
[1755302841682,4.1630023,185.95,185.94,3.03599276]
[1755302841885,3.07,185.97,185.94,0.03599276]
[1755302842087,4.16392785,185.96,185.95,3.0]
[1755302842391,7.23392785,185.96,185.95,3.0]
[1755302842687,3.07,185.95,185.94,3.03599276]
[1755302842887,7.23392785,185.95,185.94,0.03599276]
[1755302844377,3.07,185.97,185.94,0.03599276]
[1755302844586,3.07,185.96,185.95,3.0]
[1755302844987,3.07,185.96,185.94,0.03599276]
[1755302845188,4.48781012,186.01,185.94,3.03599276]
[1755302845390,3.07,185.95,185.94,3.03599276]
[1755302845584,3.07,185.95,185.94,0.03599276]
[1755302845886,3.07,186.0,185.94,3.03599276]
[1755302846091,4.16567577,185.99,185.95,3.0]
[1755302846386,3.07,186.01,185.95,3.0]
[1755302846685,3.07,186.06,186.02,5.3718]
[1755302846890,3.07,186.04,186.02,8.3718]
[1755302847092,3.07,186.04,186.02,3.0]
[1755302847383,3.07,186.04,186.03,3.0]
[1755302847584,140.20781012,186.11,186.03,3.0]
[1755302847790,140.20781012,186.11,186.01,0.03778113]
[1755302847791,3.07,186.06,186.04,8.3714]
[1755302848388,3.07,186.05,186.04,3.0]
[1755302849590,3.07,186.1,186.04,3.0]
[1755302849991,3.07,186.09,186.07,3.0]
[1755302851693,3.07,186.1,186.06,0.03544549]
[1755302852394,135.72,186.11,186.06,3.03544549]
[1755302852594,3.07,186.1,186.06,3.03544549]
[1755302853192,3.07,186.1,186.06,0.03544549]
[1755302854287,3.07,186.08,186.06,0.03544549]
[1755302855298,135.72,186.11,186.06,0.03544549]
[1755302855500,3.07,186.07,186.06,0.03544549]
[1755302855800,3.07,186.09,186.06,3.03544549]
[1755302856097,138.79,186.11,186.06,0.03544549]
[1755302856302,138.79,186.11,186.09,3.0]
[1755302856690,138.79,186.11,186.1,3.0]
[1755302856897,142.93188921,186.11,186.1,3.0]
[1755302857397,135.72,186.11,186.1,3.0]
[1755302857892,3.07,186.1,186.08,3.0]
[1755302858090,3.07,186.09,186.08,3.0]
[1755302858291,3.07,186.08,186.06,3.03544549]
[1755302858697,135.72,186.11,186.07,3.0]
[1755302858892,3.07,186.1,186.06,0.03544549]
[1755302859098,3.07,186.1,186.09,3.0]
[1755302859501,135.72,186.11,186.09,3.0]
[1755302859698,135.72,186.11,186.1,3.0]
[1755302860692,138.79,186.11,186.1,3.0]
[1755302863299,138.79,186.11,186.06,0.03544549]
[1755302863300,3.07,186.1,186.08,3.0]
[1755302864399,3.07,186.1,186.09,3.0]
[1755302866697,135.72,186.11,186.07,3.0]
[1755302866897,3.07,186.08,186.07,3.0]
[1755302867115,3.07,186.1,186.06,0.03544549]
[1755302867295,3.07,186.1,186.07,3.0]
[1755302867502,3.07,186.1,186.06,0.03544549]
[1755302867799,135.72,186.11,186.08,3.0]
[1755302868096,3.07,186.08,186.06,3.03544549]
[1755302868398,2.98,186.1,186.06,0.03544549]
[1755302868596,135.72,186.11,186.08,3.09]
[1755302868797,7.11749281,186.1,186.09,3.09]
[1755302869102,2.98,186.1,186.09,3.09]
[1755302870498,138.04,186.1,186.09,3.09]
[1755302871104,2.98,186.09,186.06,0.03544549]
[1755302871697,138.02,186.08,186.06,3.12544549]
[1755302871902,138.02,186.08,186.07,3.09]
[1755302872605,2.98,186.07,186.06,3.12544549]
[1755302873403,2.98,186.07,186.06,0.03544549]
[1755302874606,4.13817776,186.07,186.06,0.03544549]
[1755302874800,7.11817776,186.07,186.06,0.03544549]
[1755302878908,7.11817776,186.07,186.06,3.12544549]
[1755302879109,7.12314032,186.07,186.06,3.12544549]
[1755302879506,7.12314032,186.07,186.06,0.03544549]
[1755302880311,4.14314032,186.07,186.06,3.12544549]
[1755302880521,134.8,186.07,186.06,3.12544549]
[1755302880703,365.70781012,186.14,186.07,3.09]
[1755302880908,2.98,186.1,186.07,3.09]
[1755302881111,2.98,186.08,186.07,3.09]
[1755302881314,142.06652739,186.08,186.07,3.09]
[1755302882018,139.08652739,186.08,186.07,3.09]
[1755302882411,134.94,186.08,186.07,3.09]
[1755302883311,139.08948823,186.08,186.07,3.09]
[1755302884018,142.06948823,186.08,186.07,3.09]
[1755302886017,142.06948823,186.08,186.06,0.03544549]
[1755302886322,7.12948823,186.07,186.06,0.03544549]
[1755302888723,4.14948823,186.07,186.06,3.12544549]
[1755302890722,4.14948823,186.07,186.06,8.49624549]
[1755302891826,4.14948823,186.07,186.06,3.12544549]
[1755302893128,11.61729835,186.07,186.06,0.03544549]
[1755302893328,2.98,186.06,186.01,3.09]
[1755302893524,138.94948823,186.05,186.02,3.09]
[1755302893831,2.98,186.03,185.96,3.09]
[1755302894025,2.98,186.01,185.96,3.09]
[1755302894223,4.14948823,186.0,185.98,5.373]
[1755302894527,0.03431548,186.0,185.99,3.09]
[1755302894723,134.8,186.03,185.99,3.63]
[1755302894926,4.20452101,186.02,186.0,3.09]
[1755302895124,4.51841413,186.07,186.0,3.09]
[1755302895321,4.20420726,186.06,186.0,3.09]
[1755302895632,4.20420726,186.05,186.0,3.09]
[1755302895823,134.8,186.07,186.01,0.03869451]
[1755302896028,4.20349189,186.06,186.02,3.09]
[1755302896231,4.20349189,186.05,186.02,3.09]
[1755302896429,134.8,186.07,186.02,3.09]
[1755302896729,4.20356775,186.06,186.04,5.3712]
[1755302896929,134.8,186.07,186.05,3.09]
[1755302897129,4.20350118,186.06,186.05,3.09]
[1755302897426,4.20350118,186.06,186.05,5.3711]
[1755302897733,4.20350118,186.06,186.05,8.4611]
[1755302898630,4.20350118,186.06,186.05,3.09]
[1755302899124,4.20350118,186.06,186.05,8.4611]
[1755302900532,4.20350118,186.06,186.05,3.09]
[1755302900933,2.89,186.05,186.02,2.98]
[1755302901128,2.89,186.05,186.03,2.98]
[1755302901536,137.69,186.07,186.02,2.98]
[1755302901737,7.09398897,186.06,186.02,8.352]
[1755302901932,134.8,186.07,186.02,8.352]
[1755302901933,7.09398897,186.05,186.02,5.372]
[1755302902235,2.89,186.05,186.04,2.98]
[1755302902435,7.09421035,186.05,186.04,2.98]
[1755302904033,4.20421035,186.05,186.04,2.98]
[1755302904536,7.09421035,186.05,186.04,2.98]
[1755302905039,4.20421035,186.05,186.04,2.98]
[1755302905938,7.09421035,186.05,186.04,2.98]
[1755302906332,7.09421035,186.05,186.01,0.03869451]
[1755302906534,4.20421035,186.04,186.03,2.98]
[1755302906734,7.09421035,186.04,186.03,2.98]
[1755302907545,2.89,186.03,186.01,5.41089451]
[1755302907744,2.89,186.06,186.02,2.98]
[1755302908043,2.89,186.04,186.02,2.98]
[1755302908240,2.89,186.02,186.01,3.01869451]
[1755302908443,7.09564413,186.02,186.01,0.03869451]
[1755302909145,7.09564413,186.02,186.01,3.01869451]
[1755302910540,7.09564413,186.02,186.01,0.03869451]
[1755302912648,7.09564413,186.02,185.94,5.50292612]
[1755302912649,2.89,186.01,185.96,2.98]
[1755302912943,2.89,185.98,185.95,2.98]
[1755302913137,2.89,185.98,185.94,3.49577776]
[1755302913334,2.89,185.98,185.97,2.98]
[1755302913540,7.09516334,185.98,185.97,2.98]
[1755302914139,2.89,185.98,185.97,2.98]
[1755302914443,4.20439871,185.98,185.94,3.49577776]
[1755302914648,2.89,185.97,185.96,2.98]
[1755302915249,2.89,185.98,185.97,2.98]
[1755302915546,7.10439766,185.98,185.97,2.98]
[1755302916243,134.83469052,185.99,185.97,2.98]
[1755302916546,2.89,185.98,185.97,2.98]
[1755302917051,134.83469052,185.99,185.94,3.49577776]
[1755302917249,134.83469052,185.99,185.95,2.98]
[1755302917750,137.72469052,185.99,185.97,2.98]
[1755302917951,2.89,185.98,185.97,2.98]
[1755302918349,4.21306179,185.98,185.95,2.98]
[1755302918552,134.83469052,185.99,185.95,2.98]
[1755302918553,137.72469052,185.99,185.95,2.98]
[1755302918850,134.83469052,185.99,185.96,2.98]
[1755302919147,137.72469052,185.99,185.96,2.98]
[1755302919350,134.83469052,185.99,185.98,2.98]
[1755302919552,141.93699174,185.99,185.98,2.98]
[1755302919746,139.01230122,185.99,185.95,6.47577776]
[1755302920053,139.01230122,185.99,185.9,3.49577776]
[1755302920054,2.89,185.97,185.93,2.98]
[1755302920246,2.89,185.97,185.94,2.98]
[1755302920444,2.89,185.98,185.93,2.98]
[1755302920644,2.89,185.96,185.94,2.98]
[1755302920846,2.89,185.96,185.95,2.98]
[1755302921353,0.03544485,185.97,185.96,2.98]
[1755302922148,2.92544485,185.97,185.96,2.98]
[1755302922345,0.03544485,185.97,185.96,2.98]
[1755302923149,2.89,185.96,185.94,2.98]
[1755302923556,0.03544485,185.97,185.94,2.98]
[1755302923744,2.89,185.95,185.94,2.98]
[1755302925454,2.92544485,185.97,185.93,2.98]
[1755302925653,0.03544485,185.97,185.96,2.98]
[1755302926156,2.92544485,185.97,185.96,2.98]
[1755302926351,0.03544485,185.97,185.96,2.98]
[1755302927453,0.03544485,185.97,185.96,8.3538]
[1755302928250,137.69,186.01,185.98,5.3732]
[1755302928450,137.69,186.01,185.99,2.94]
[1755302928755,137.69,186.01,186.0,2.94]
[1755302928956,139.00544996,186.01,186.0,2.94]
[1755302929550,141.87544996,186.01,186.0,2.94]
[1755302929851,7.07544996,186.01,186.0,2.94]
[1755302930047,7.07544996,186.01,185.99,2.94]
[1755302930251,2.87,186.01,186.0,2.94]
[1755302930451,7.07610919,186.01,186.0,2.94]
[1755302930652,4.20610919,186.01,186.0,2.94]
[1755302931656,2.87,186.03,186.0,2.94]
[1755302931857,4.20609395,186.02,186.01,2.94]
[1755302932657,4.51841413,186.07,186.02,2.94]
[1755302932959,6.00496529,186.09,185.99,0.03545547]
[1755302932960,2.87,186.08,186.04,3.49577776]
[1755302933254,2.87,186.07,186.06,2.94]
[1755302933758,134.8,186.1,186.06,2.94]
[1755302933959,134.8,186.1,186.07,2.94]
[1755302934163,2.87,186.08,186.07,2.94]
[1755302934756,134.8,186.1,186.08,2.94]
[1755302934757,2.87,186.09,186.08,2.94]
[1755302935457,4.51841413,186.12,186.05,5.371]
[1755302935662,2.87,186.14,186.1,3.49577776]
[1755302935864,4.51841413,186.16,186.11,2.94]
[1755302935865,142.16841413,186.16,186.11,2.94]
[1755302936160,2.87,186.15,186.11,2.94]
[1755302936362,134.78,186.16,186.14,2.94]
[1755302936559,134.78,186.16,186.13,3.49577776]
[1755302936757,137.65,186.16,186.15,2.94]
[1755302937260,2.87,186.15,185.97,109.7466]
[1755302937462,2.87,186.15,186.08,3.49577776]
[1755302937666,2.87,186.15,186.14,0.03583431]
[1755302937960,134.78,186.16,186.08,8.86597776]
[1755302938166,2.87,186.13,186.12,2.94]
[1755302938357,2.87,186.13,186.08,3.49577776]
[1755302938559,2.87,186.13,186.11,2.94]
[1755302938867,2.87,186.13,186.12,2.94]
[1755302939364,2.87,186.15,186.1,0.03636209]
[1755302939565,4.51841413,186.15,186.1,0.03636209]
[1755302939867,2.87,186.14,186.1,0.03636209]
[1755302940160,4.51841413,186.15,186.1,0.03636209]
[1755302940364,0.93520733,186.16,186.14,6.43577776]
[1755302940564,139.25841413,186.21,186.15,2.94]
[1755302940759,134.74,186.21,186.15,8.3081]
[1755302941064,137.61,186.21,186.17,3.49577776]
[1755302941359,2.87,186.2,186.17,3.49577776]
[1755302941665,2.87,186.17,186.16,0.03717411]
[1755302941868,2.87,186.17,186.16,2.97717411]
[1755302942158,2.87,186.17,186.16,0.03717411]
[1755302944256,2.87,186.17,186.1,2.94]
[1755302944465,2.87,186.15,186.1,2.94]
[1755302944659,4.15591523,186.14,186.11,2.94]
[1755302944860,2.87,186.15,186.11,2.94]
[1755302945056,4.15591488,186.14,186.11,2.94]
[1755302945368,2.87,186.13,186.11,2.94]
[1755302945866,0.03783249,186.14,186.11,2.94]
[1755302946166,2.87,186.12,186.11,2.94]
[1755302946465,0.03783249,186.14,186.11,2.94]
[1755302946668,0.03783249,186.14,186.1,2.94]
[1755302947168,2.87,186.16,186.1,8.3096]
[1755302947359,0.03689652,186.14,186.11,2.94]
[1755302947559,0.03689652,186.14,186.09,5.49798069]
[1755302947762,2.90689652,186.14,186.13,2.94]
[1755302948562,0.03689652,186.14,186.13,2.94]
[1755302953573,134.76,186.18,186.09,5.49798069]
[1755302953773,2.87,186.2,186.14,2.94]
[1755302954774,2.87,186.2,186.15,5.3683]
[1755302954974,134.68,186.22,186.15,0.03463415]
[1755302955170,2.87,186.18,186.17,2.94]
[1755302955376,2.87,186.2,186.16,2.94]
[1755302956474,2.87,186.19,186.15,0.03463415]
[1755302956678,2.87,186.19,186.18,2.94]
[1755302956978,2.87,186.21,186.2,2.94]
[1755302957478,2.87,186.21,186.17,5.3675]
[1755302957677,134.68,186.22,186.19,0.03563139]
[1755302958079,134.68,186.22,186.18,2.94]
[1755302958280,3.08,186.2,186.19,3.0]
[1755302959178,134.68,186.22,186.18,0.03729848]
[1755302959382,137.76,186.22,186.21,3.0]
[1755302961587,3.08,186.22,186.21,3.0]
[1755302961783,3.08,186.25,186.22,3.0]
[1755302961977,134.66,186.26,186.22,3.0]
[1755302962173,134.66,186.26,186.22,8.3663]
[1755302962376,3.08,186.25,186.22,3.0]
[1755302962579,3.08,186.25,186.22,3.03604518]
[1755302962774,3.08,186.27,186.22,8.40234518]
[1755302962978,3.08,186.26,186.23,3.0]
[1755302963178,3.08,186.29,186.23,3.0]
[1755302963487,3.08,186.31,186.25,3.0]
[1755302963680,3.08,186.29,186.25,3.0]
[1755302964186,3.08,186.29,186.25,3.03519831]
[1755302964682,3.08,186.28,186.25,3.03519831]
[1755302965576,3.08,186.3,186.25,8.40049831]
[1755302965781,3.08,186.3,186.26,3.0]
[1755302966178,0.93441633,186.32,186.26,3.0]
[1755302966384,3.08,186.29,186.26,3.0]
[1755302967685,3.08,186.29,186.26,8.3651]
[1755302967885,3.08,186.29,186.27,3.0]
[1755302968084,3.08,186.29,186.28,3.0]
[1755302968279,3.08,186.31,186.29,3.0]
[1755302968485,3.08,186.31,186.3,3.0]
[1755302968878,7.20815919,186.31,186.3,3.0]
[1755302969281,7.20815919,186.31,186.28,3.0]
[1755302969481,3.08,186.3,186.29,3.0]
[1755302970184,3.08,186.32,186.29,3.0]
[1755302970382,7.20932822,186.31,186.3,3.0]
[1755302971090,0.93432852,186.35,186.28,5.40510068]
[1755302971288,3.08,186.32,186.3,3.0]
[1755302971486,7.20958636,186.31,186.3,3.0]
[1755302971983,4.12958636,186.31,186.3,3.0]
[1755302972190,7.20958636,186.31,186.3,3.0]
[1755302972688,3.08,186.3,186.28,0.04070068]
[1755302972888,3.08,186.29,186.28,3.04070068]
[1755302973090,3.08,186.33,186.28,5.40520068]
[1755302973290,4.13105897,186.32,186.3,3.48527748]
[1755302973588,0.93432852,186.35,186.31,3.0]
[1755302973886,3.08,186.33,186.32,3.0]
[1755302974077,7.21094861,186.33,186.32,3.0]
[1755302975684,4.13094861,186.33,186.32,3.0]
[1755302976285,4.49017393,186.37,186.32,3.0]
[1755302976487,7.57017393,186.38,186.33,3.48527748]
[1755302976690,7.57017393,186.38,186.35,3.0]
[1755302976888,4.49017393,186.38,186.35,3.0]
[1755302977188,4.49017393,186.36,186.34,0.03935886]
[1755302977383,3.08,186.35,186.34,3.03935886]
[1755302977689,7.54707358,186.38,186.36,3.0]
[1755302977890,3.08,186.37,186.36,3.0]
[1755302978291,3.08,186.37,186.34,0.03935886]
[1755302978592,4.46707358,186.38,186.35,3.0]
[1755302978789,7.54707358,186.38,186.34,5.40215886]
[1755302978989,4.46707358,186.38,186.36,3.0]
[1755302979191,3.08,186.37,186.36,3.0]
[1755302979490,4.46707358,186.38,186.35,5.3625]
[1755302979691,7.54707358,186.38,186.37,3.0]
[1755302980091,7.54707358,186.38,186.35,3.0]
[1755302980293,3.08,186.37,186.36,3.0]
[1755302981492,3.08,186.37,186.34,0.03935886]
[1755302981791,3.08,186.36,186.34,3.03935886]
[1755302981991,4.46707358,186.37,186.36,3.0]
[1755302982289,3.08,186.37,186.35,3.0]
[1755302982492,3.08,186.37,186.36,3.0]
[1755302982690,3.08,186.37,186.34,0.03935886]
[1755302982890,3.08,186.36,186.34,3.03935886]
[1755302983085,3.08,186.36,186.35,3.0]
[1755302985189,4.46707358,186.39,186.34,5.40215886]
[1755302985492,3.08,186.37,186.36,3.0]
[1755302987893,3.08,186.39,186.35,3.0]
[1755302988090,3.08,186.39,186.36,3.48527748]
[1755302988293,4.10386405,186.38,186.37,5.3618]
[1755302988695,4.10386405,186.38,186.36,8.84757748]
[1755302988894,2.91,186.39,186.38,2.96]
[1755302989195,4.10377405,186.39,186.38,2.96]
[1755302991996,2.91,186.38,186.37,0.03998229]
[1755302992296,7.01377405,186.38,186.37,0.03998229]
[1755302992494,7.01377405,186.38,186.37,2.99998229]
[1755302996195,7.01377405,186.38,186.37,0.03998229]
[1755302999908,7.01377405,186.38,186.37,2.99998229]
[1755303002003,4.10377405,186.38,186.37,2.99998229]
[1755303003002,4.10377405,186.38,186.37,8.36198229]
[1755303003605,4.10377405,186.38,186.37,2.99998229]
[1755303003912,7.01377405,186.38,186.37,2.99998229]
[1755303004705,11.48084763,186.38,186.37,2.99998229]
[1755303005410,8.57084763,186.38,186.37,2.99998229]
[1755303005910,8.57084763,186.38,186.37,8.36198229]
[1755303006610,16.13255545,186.38,186.37,8.36198229]
[1755303006812,16.13255545,186.38,186.37,2.99998229]
[1755303007206,11.66548187,186.38,186.37,2.99998229]
[1755303007512,11.70086947,186.38,186.37,8.36198229]
[1755303007907,8.79086947,186.38,186.37,8.36198229]
[1755303008108,4.13916165,186.38,186.37,8.36198229]
[1755303010417,4.50186088,186.42,186.38,2.96]
[1755303010609,4.50186088,186.42,186.41,2.96]
[1755303010809,4.50186088,186.43,186.41,2.96]
[1755303011314,134.38,186.46,186.4,3.48527748]
[1755303011315,4.50186088,186.44,186.4,3.48527748]
[1755303011606,7.41186088,186.46,186.44,2.96]
[1755303011806,2.91,186.46,186.45,2.96]
[1755303012201,4.50186088,186.47,186.45,2.96]
[1755303012405,4.50186088,186.48,186.44,2.96]
[1755303012907,4.50186088,186.48,186.46,2.96]
[1755303013108,7.41186088,186.48,186.47,2.96]
[1755303013308,2.91,186.49,186.48,2.96]
[1755303014007,4.50186088,186.5,186.47,0.03800739]
[1755303014207,7.41186088,186.48,186.47,0.03800739]
[1755303014414,7.55878598,186.48,186.47,0.03800739]
[1755303016709,4.64878598,186.48,186.47,0.03800739]
[1755303016910,2.91,186.49,186.48,2.96]
[1755303017112,4.49766226,186.52,186.48,2.96]
[1755303017412,2.91,186.5,186.49,2.96]
[1755303017807,4.49766226,186.52,186.47,3.52328487]
[1755303018008,2.91,186.49,186.47,0.03800739]
[1755303018208,2.91,186.48,186.47,2.99800739]
[1755303018408,2.91,186.48,186.47,0.03800739]
[1755303019416,2.91,186.48,186.47,2.91800739]
[1755303019714,3.02,186.49,186.47,0.03800739]
[1755303021115,3.02,186.48,186.47,0.03800739]
[1755303021816,3.02,186.48,186.47,2.91800739]
[1755303022612,7.13171339,186.48,186.47,2.91800739]
[1755303022811,0.93343884,186.53,186.47,6.40328487]
[1755303023018,3.02,186.51,186.49,2.88]
[1755303023222,4.11144519,186.5,186.47,2.91800739]
[1755303023415,3.02,186.48,186.47,0.03800739]
[1755303023621,7.13144519,186.48,186.47,0.03800739]
[1755303024616,7.13144519,186.48,186.47,2.91800739]
[1755303024815,3.02,186.5,186.47,2.91800739]
[1755303025020,3.02,186.52,186.48,2.88]
[1755303025218,4.11007879,186.51,186.48,2.88]
[1755303025418,4.11007879,186.5,186.48,2.88]
[1755303025615,0.93343884,186.53,186.48,2.88]
[1755303025920,3.02,186.5,186.47,2.91800739]
[1755303026114,3.02,186.48,186.47,0.03800739]
[1755303026317,7.12908051,186.48,186.47,0.03800739]
[1755303026623,4.10908051,186.48,186.47,2.91800739]
[1755303026816,7.12908051,186.48,186.47,2.91800739]
[1755303027018,3.02,186.5,186.47,2.91800739]
[1755303027223,137.26,186.52,186.48,2.88]
[1755303027423,4.10808985,186.51,186.48,2.88]